[Event "Live Chess"]
[Site "Chess.com"]
[Date "2023.05.20"]
[Round "-"]
[White "NatashaRegan"]
[Black "Long1968"]
[Result "1-0"]
[WhiteElo "1813"]
[BlackElo "771"]
[TimeControl "300"]
[EndTime "12:58:02 PDT"]
[Termination "NatashaRegan won by checkmate"]

1. e4 {[%clk 0:04:57.6]} 1... e6 {[%clk 0:04:57.3]} 2. d4 {[%clk 0:04:51.2]}
2... d5 {[%clk 0:04:54.1]} 3. exd5 {[%clk 0:04:48.7]} 3... exd5 {[%clk
0:04:52.1]} 4. Be2 {[%clk 0:04:45.4]} 4... Nf6 {[%clk 0:04:49]} 5. Nf3 {[%clk
0:04:41.9]} 5... Bg4 {[%clk 0:04:45.8]} 6. O-O {[%clk 0:04:38.6]} 6... Be7
{[%clk 0:04:43.1]} 7. Bf4 {[%clk 0:04:33.4]} 7... c6 {[%clk 0:04:39.1]} 8. c4
{[%clk 0:04:28.6]} 8... dxc4 {[%clk 0:04:31.2]} 9. Bxc4 {[%clk 0:04:25.1]} 9...
Bxf3 {[%clk 0:04:04.8]} 10. Qxf3 {[%clk 0:04:20.4]} 10... Qxd4 {[%clk 0:04:00]}
11. Nd2 {[%clk 0:04:08.9]} 11... O-O {[%clk 0:03:48.8]} 12. Rad1 {[%clk
0:04:04.9]} 12... Nd5 {[%clk 0:03:20.4]} 13. Qg3 {[%clk 0:03:54]} 13... Qxf4
{[%clk 0:03:08.3]} 14. Bxd5 {[%clk 0:03:46.4]} 14... Qxg3 {[%clk 0:03:04.3]} 15.
Bxf7+ {[%clk 0:03:39.6]} 15... Rxf7 {[%clk 0:03:00.8]} 16. hxg3 {[%clk
0:03:38.7]} 16... Nd7 {[%clk 0:02:50.6]} 17. Ne4 {[%clk 0:03:35.4]} 17... Nf6
{[%clk 0:02:40.2]} 18. Ng5 {[%clk 0:03:31.8]} 18... Rff8 {[%clk 0:02:32.8]} 19.
Rfe1 {[%clk 0:03:29.8]} 19... Bc5 {[%clk 0:02:20.1]} 20. Ne6 {[%clk 0:03:23.6]}
20... Ng4 {[%clk 0:01:26.3]} 21. Nxc5 {[%clk 0:03:17.3]} 21... Rxf2 {[%clk
0:01:18.7]} 22. Nd3 {[%clk 0:03:12.6]} 22... Rc2 {[%clk 0:00:58.8]} 23. Re7
{[%clk 0:03:01.2]} 23... Rf8 {[%clk 0:00:53.1]} 24. Rxb7 {[%clk 0:02:57]} 24...
Nf2 {[%clk 0:00:48.6]} 25. Nxf2 {[%clk 0:02:53]} 25... Rfxf2 {[%clk 0:00:40.4]}
26. Rd8+ {[%clk 0:02:48.7]} 26... Rf8 {[%clk 0:00:36.5]} 27. Rdd7 {[%clk
0:02:47.4]} 27... g6 {[%clk 0:00:22.9]} 28. Rg7+ {[%clk 0:02:44.4]} 28... Kh8
{[%clk 0:00:19.3]} 29. Rxh7+ {[%clk 0:02:43.6]} 29... Kg8 {[%clk 0:00:17.2]} 30.
Rbg7# {[%clk 0:02:42.3]} 1-0

[Event "Live Chess"]
[Site "Chess.com"]
[Date "2023.05.20"]
[Round "-"]
[White "Man-Del-Brot"]
[Black "Ninifu"]
[Result "0-1"]
[WhiteElo "1078"]
[BlackElo "2018"]
[TimeControl "300"]
[EndTime "12:58:15 PDT"]
[Termination "Ninifu won on time"]

1. c4 {[%clk 0:04:56]} 1... Nf6 {[%clk 0:04:57.9]} 2. Nc3 {[%clk 0:04:54.2]}
2... g6 {[%clk 0:04:57.1]} 3. e3 {[%clk 0:04:53.3]} 3... Bg7 {[%clk 0:04:55.8]}
4. Nf3 {[%clk 0:04:51.6]} 4... O-O {[%clk 0:04:55.3]} 5. Be2 {[%clk 0:04:50.2]}
5... d6 {[%clk 0:04:54.5]} 6. d4 {[%clk 0:04:48]} 6... Nbd7 {[%clk 0:04:52.6]}
7. O-O {[%clk 0:04:46.7]} 7... e5 {[%clk 0:04:51.8]} 8. d5 {[%clk 0:04:44.3]}
8... a5 {[%clk 0:04:50.4]} 9. h3 {[%clk 0:04:23.6]} 9... Nc5 {[%clk 0:04:48.1]}
10. a3 {[%clk 0:04:15.4]} 10... Nfd7 {[%clk 0:04:41.1]} 11. Nd2 {[%clk
0:04:11.7]} 11... f5 {[%clk 0:04:37.8]} 12. Nb3 {[%clk 0:04:10]} 12... Nxb3
{[%clk 0:04:36]} 13. Qxb3 {[%clk 0:04:07.8]} 13... Nc5 {[%clk 0:04:35.4]} 14.
Qd1 {[%clk 0:03:56.6]} 14... a4 {[%clk 0:04:26.4]} 15. Na2 {[%clk 0:03:47.4]}
15... Bd7 {[%clk 0:04:21.7]} 16. Nb4 {[%clk 0:03:45.4]} 16... Qh4 {[%clk
0:04:17.6]} 17. Kh2 {[%clk 0:02:58.2]} 17... f4 {[%clk 0:04:10.3]} 18. Bg4
{[%clk 0:02:52.7]} 18... h5 {[%clk 0:02:52.8]} 19. Bxd7 {[%clk 0:02:50.2]} 19...
Nxd7 {[%clk 0:02:51.5]} 20. Qf3 {[%clk 0:02:41.4]} 20... e4 {[%clk 0:02:40.9]}
21. Qxe4 {[%clk 0:02:33.7]} 21... Rae8 {[%clk 0:02:14.8]} 22. Qd3 {[%clk
0:02:21.8]} 22... Ne5 {[%clk 0:02:12.4]} 23. Qc2 {[%clk 0:01:49.7]} 23... Ng4+
{[%clk 0:01:54.2]} 24. Kg1 {[%clk 0:01:40.8]} 24... f3 {[%clk 0:01:52.6]} 25.
Qxg6 {[%clk 0:01:28.8]} 25... Ne5 {[%clk 0:00:51.5]} 26. Qg3 {[%clk 0:01:14.8]}
26... Qf6 {[%clk 0:00:46.8]} 27. e4 {[%clk 0:00:58.9]} 27... Kh8 {[%clk
0:00:43.9]} 28. Bg5 {[%clk 0:00:54.9]} 28... Qf7 {[%clk 0:00:35.7]} 29. Bf4
{[%clk 0:00:37.3]} 29... Qxf4 {[%clk 0:00:33.5]} 30. Qxf4 {[%clk 0:00:35.7]}
30... Rxf4 {[%clk 0:00:32.7]} 31. g3 {[%clk 0:00:34.5]} 31... Rxe4 {[%clk
0:00:31.7]} 32. Nc2 {[%clk 0:00:25.5]} 32... Rxc4 {[%clk 0:00:29.3]} 33. Ne3
{[%clk 0:00:23.1]} 33... Re4 {[%clk 0:00:27.3]} 34. Nf5 {[%clk 0:00:17.6]} 34...
Nc4 {[%clk 0:00:24]} 35. Nxg7 {[%clk 0:00:16]} 35... Kxg7 {[%clk 0:00:22.9]} 36.
Kh2 {[%clk 0:00:13.3]} 36... Re2 {[%clk 0:00:21.5]} 37. Rfc1 {[%clk 0:00:11.3]}
37... b5 {[%clk 0:00:19.6]} 38. Rxc4 {[%clk 0:00:08]} 38... bxc4 {[%clk
0:00:18.2]} 39. Rc1 {[%clk 0:00:07.1]} 39... Rxf2+ {[%clk 0:00:16.7]} 40. Kg1
{[%clk 0:00:05.1]} 40... Ree2 {[%clk 0:00:15.9]} 41. Rxc4 {[%clk 0:00:00.3]}
41... Rg2+ {[%clk 0:00:12.9]} 0-1

[Event "Live Chess"]
[Site "Chess.com"]
[Date "2023.05.20"]
[Round "-"]
[White "stevochess11"]
[Black "McSlash1"]
[Result "0-1"]
[WhiteElo "1796"]
[BlackElo "2058"]
[TimeControl "300"]
[EndTime "12:58:17 PDT"]
[Termination "McSlash1 won by checkmate"]

1. d4 {[%clk 0:04:58.6]} 1... Nf6 {[%clk 0:04:58.6]} 2. Nf3 {[%clk 0:04:57.7]}
2... g6 {[%clk 0:04:57.4]} 3. Nc3 {[%clk 0:04:55.4]} 3... d5 {[%clk 0:04:56.5]}
4. Bf4 {[%clk 0:04:53.7]} 4... Bg7 {[%clk 0:04:55.2]} 5. e3 {[%clk 0:04:52.4]}
5... O-O {[%clk 0:04:54]} 6. Be2 {[%clk 0:04:47.5]} 6... c5 {[%clk 0:04:50.6]}
7. Ne5 {[%clk 0:04:46.5]} 7... Nbd7 {[%clk 0:04:49.4]} 8. O-O {[%clk 0:04:44.7]}
8... Nxe5 {[%clk 0:04:46.6]} 9. Bxe5 {[%clk 0:04:41.5]} 9... e6 {[%clk
0:04:45.7]} 10. Nb5 {[%clk 0:04:29.5]} 10... a6 {[%clk 0:04:43.1]} 11. Nc7
{[%clk 0:04:22.5]} 11... Ra7 {[%clk 0:04:42]} 12. dxc5 {[%clk 0:04:17]} 12...
Nd7 {[%clk 0:04:39.3]} 13. Bd6 {[%clk 0:04:12.4]} 13... b6 {[%clk 0:04:12]} 14.
Bxf8 {[%clk 0:04:07.2]} 14... Bxf8 {[%clk 0:04:07.9]} 15. cxb6 {[%clk
0:04:05.1]} 15... Nxb6 {[%clk 0:04:07.8]} 16. Nxa6 {[%clk 0:04:00.8]} 16... Bxa6
{[%clk 0:04:05.4]} 17. Bxa6 {[%clk 0:03:59.3]} 17... Rxa6 {[%clk 0:04:05.3]} 18.
e4 {[%clk 0:03:53.5]} 18... Bg7 {[%clk 0:03:59.6]} 19. c3 {[%clk 0:03:49.8]}
19... Ra7 {[%clk 0:03:56]} 20. a4 {[%clk 0:03:42]} 20... Nc4 {[%clk 0:03:50.1]}
21. Qc2 {[%clk 0:03:31.1]} 21... dxe4 {[%clk 0:03:46.3]} 22. Rfd1 {[%clk
0:03:23.6]} 22... Qc7 {[%clk 0:03:44]} 23. Qxe4 {[%clk 0:03:16.8]} 23... Nxb2
{[%clk 0:03:35.3]} 24. Rd2 {[%clk 0:03:11.6]} 24... Nc4 {[%clk 0:03:34.3]} 25.
Re2 {[%clk 0:03:07.9]} 25... Nb6 {[%clk 0:03:29.2]} 26. Rd1 {[%clk 0:03:02.2]}
26... Rxa4 {[%clk 0:03:24.3]} 27. Qc2 {[%clk 0:02:55.6]} 27... Nd5 {[%clk
0:03:17.2]} 28. Qxa4 {[%clk 0:02:52]} 28... Nxc3 {[%clk 0:03:14.5]} 29. Qe8+
{[%clk 0:02:48.9]} 29... Bf8 {[%clk 0:03:12.7]} 30. Rc2 {[%clk 0:02:45.9]} 30...
Qe5 {[%clk 0:03:03.4]} 31. g3 {[%clk 0:02:36.8]} 31... Nxd1 {[%clk 0:02:59.5]}
32. Rc8 {[%clk 0:02:32.1]} 32... Qe1+ {[%clk 0:02:58.2]} 33. Kg2 {[%clk
0:02:30.9]} 33... Qxf2+ {[%clk 0:02:48.6]} 34. Kh3 {[%clk 0:02:29.5]} 34... Qf5+
{[%clk 0:02:43.8]} 35. Kg2 {[%clk 0:02:27.3]} 35... Qd5+ {[%clk 0:02:42.9]} 36.
Kh3 {[%clk 0:02:25.9]} 36... Qh5+ {[%clk 0:02:35.6]} 37. Kg2 {[%clk 0:02:24.5]}
37... Qh6 {[%clk 0:02:34.1]} 38. Rd8 {[%clk 0:02:20.8]} 38... Ne3+ {[%clk
0:02:30.1]} 39. Kf3 {[%clk 0:02:18.2]} 39... Nd5 {[%clk 0:02:28.4]} 40. Rd7
{[%clk 0:02:15.8]} 40... Qe3+ {[%clk 0:02:09.2]} 41. Kg2 {[%clk 0:02:14.1]}
41... Qe2+ {[%clk 0:02:07.8]} 42. Kh3 {[%clk 0:02:07.3]} 42... Qf3 {[%clk
0:01:50]} 43. Rd8 {[%clk 0:02:00.6]} 43... Nf4+ {[%clk 0:01:46]} 44. Kh4 {[%clk
0:01:58.4]} 44... Qh5# {[%clk 0:01:40.5]} 0-1

[Event "Live Chess"]
[Site "Chess.com"]
[Date "2023.05.20"]
[Round "-"]
[White "chessfiction"]
[Black "chessleanstrategist"]
[Result "1-0"]
[WhiteElo "2421"]
[BlackElo "399"]
[TimeControl "300"]
[EndTime "12:58:21 PDT"]
[Termination "chessfiction won by resignation"]

1. e4 {[%clk 0:04:58.2]} 1... d6 {[%clk 0:04:58.6]} 2. d4 {[%clk 0:04:56]} 2...
Nf6 {[%clk 0:04:56.4]} 3. Bc4 {[%clk 0:04:55]} 3... g6 {[%clk 0:04:54.7]} 4. h4
{[%clk 0:04:52.6]} 4... Bg7 {[%clk 0:04:52.6]} 5. h5 {[%clk 0:04:51.9]} 5...
Nxh5 {[%clk 0:04:45.3]} 6. Rxh5 {[%clk 0:04:48.3]} 6... gxh5 {[%clk 0:04:42.6]}
7. Qxh5 {[%clk 0:04:48.2]} 7... O-O {[%clk 0:04:36.2]} 8. Nf3 {[%clk 0:04:42.3]}
8... e6 {[%clk 0:04:26.6]} 9. e5 {[%clk 0:04:40.5]} 9... d5 {[%clk 0:04:22.3]}
10. Bd3 {[%clk 0:04:39.7]} 10... f5 {[%clk 0:04:15.3]} 11. exf6 {[%clk
0:04:38.7]} 11... Rxf6 {[%clk 0:04:10.8]} 12. Bxh7+ {[%clk 0:04:36.6]} 12... Kh8
{[%clk 0:03:56.2]} 13. Bg5 {[%clk 0:04:34.3]} 13... Rf5 {[%clk 0:03:39.3]} 14.
Bxf5+ {[%clk 0:04:30.2]} 1-0

[Event "Live Chess"]
[Site "Chess.com"]
[Date "2023.05.20"]
[Round "-"]
[White "Tema1107"]
[Black "TheSmoulderingMaster"]
[Result "1-0"]
[WhiteElo "1974"]
[BlackElo "1740"]
[TimeControl "300"]
[EndTime "12:58:34 PDT"]
[Termination "Tema1107 won by checkmate"]

1. c4 {[%clk 0:04:57.5]} 1... e5 {[%clk 0:04:58.7]} 2. Nc3 {[%clk 0:04:57]} 2...
Nf6 {[%clk 0:04:57.7]} 3. g3 {[%clk 0:04:56]} 3... d6 {[%clk 0:04:56.9]} 4. Bg2
{[%clk 0:04:55.3]} 4... Be7 {[%clk 0:04:56.1]} 5. Nf3 {[%clk 0:04:51.4]} 5...
O-O {[%clk 0:04:55.1]} 6. O-O {[%clk 0:04:50.6]} 6... c6 {[%clk 0:04:53.5]} 7.
e4 {[%clk 0:04:47.7]} 7... Bg4 {[%clk 0:04:52.4]} 8. h3 {[%clk 0:04:45.9]} 8...
Be6 {[%clk 0:04:50.7]} 9. b3 {[%clk 0:04:43.7]} 9... Qd7 {[%clk 0:04:50]} 10.
Kh2 {[%clk 0:04:34.3]} 10... Nh5 {[%clk 0:04:47.8]} 11. d4 {[%clk 0:04:29.6]}
11... exd4 {[%clk 0:04:46.5]} 12. Nxd4 {[%clk 0:04:29.5]} 12... Bf6 {[%clk
0:04:45]} 13. Be3 {[%clk 0:04:23.6]} 13... Na6 {[%clk 0:04:43.3]} 14. Qxh5
{[%clk 0:04:18.4]} 14... Nc5 {[%clk 0:04:40.5]} 15. Nxe6 {[%clk 0:04:11.9]}
15... Nxe6 {[%clk 0:04:38.3]} 16. Rac1 {[%clk 0:04:07.4]} 16... g6 {[%clk
0:04:33.5]} 17. Qe2 {[%clk 0:04:01.9]} 17... Qc7 {[%clk 0:04:30.8]} 18. Rfd1
{[%clk 0:03:30.1]} 18... Rfe8 {[%clk 0:04:26.4]} 19. f4 {[%clk 0:03:25.2]} 19...
Bg7 {[%clk 0:04:23]} 20. Qd2 {[%clk 0:03:14.8]} 20... h5 {[%clk 0:04:21.6]} 21.
f5 {[%clk 0:03:07.6]} 21... Nd8 {[%clk 0:04:18.3]} 22. Bf4 {[%clk 0:02:38.7]}
22... h4 {[%clk 0:04:06.1]} 23. g4 {[%clk 0:02:34.2]} 23... g5 {[%clk
0:04:03.5]} 24. Bxg5 {[%clk 0:02:27.5]} 24... d5+ {[%clk 0:04:02]} 25. Bf4
{[%clk 0:02:22.1]} 25... Be5 {[%clk 0:04:01]} 26. Bxe5 {[%clk 0:02:20.7]} 26...
Qxe5+ {[%clk 0:03:59.6]} 27. Kh1 {[%clk 0:02:20]} 27... dxe4 {[%clk 0:03:54.1]}
28. Nxe4 {[%clk 0:02:16.9]} 28... c5 {[%clk 0:03:49.1]} 29. Qg5+ {[%clk
0:02:12.7]} 29... Kf8 {[%clk 0:03:46.7]} 30. Nf6 {[%clk 0:02:05.6]} 30... Nc6
{[%clk 0:03:33.5]} 31. Nh7# {[%clk 0:02:00.1]} 1-0

[Event "Live Chess"]
[Site "Chess.com"]
[Date "2023.05.20"]
[Round "-"]
[White "HoarseyHorsey"]
[Black "Geomorph"]
[Result "1-0"]
[WhiteElo "1402"]
[BlackElo "1244"]
[TimeControl "300"]
[EndTime "12:58:41 PDT"]
[Termination "HoarseyHorsey won by resignation"]

1. d4 {[%clk 0:04:57.5]} 1... d5 {[%clk 0:04:58.6]} 2. c4 {[%clk 0:04:56.1]}
2... c6 {[%clk 0:04:57.5]} 3. cxd5 {[%clk 0:04:54.2]} 3... cxd5 {[%clk
0:04:55.5]} 4. Bf4 {[%clk 0:04:53.8]} 4... Qb6 {[%clk 0:04:44]} 5. Qb3 {[%clk
0:04:32.2]} 5... Qxd4 {[%clk 0:04:40.1]} 6. e3 {[%clk 0:04:28.3]} 6... Qc5
{[%clk 0:04:29.5]} 7. Nc3 {[%clk 0:04:19.1]} 7... Nf6 {[%clk 0:04:26]} 8. Be5
{[%clk 0:03:52.7]} 8... Nbd7 {[%clk 0:04:24.2]} 9. Bd4 {[%clk 0:03:45.6]} 9...
Qc7 {[%clk 0:04:14]} 10. Nxd5 {[%clk 0:03:40.2]} 10... Nxd5 {[%clk 0:04:11.6]}
11. Qxd5 {[%clk 0:03:40.1]} 11... Nf6 {[%clk 0:04:06.9]} 12. Bb5+ {[%clk
0:03:29.4]} 12... Bd7 {[%clk 0:04:02.8]} 13. Bxd7+ {[%clk 0:03:27.8]} 13... Nxd7
{[%clk 0:04:01.7]} 14. Nf3 {[%clk 0:03:22.4]} 14... e6 {[%clk 0:03:58.6]} 15.
Qb3 {[%clk 0:03:14.2]} 15... b6 {[%clk 0:03:54.6]} 16. O-O {[%clk 0:03:12.1]}
16... Be7 {[%clk 0:03:51.7]} 17. Bxg7 {[%clk 0:03:08.7]} 17... Rg8 {[%clk
0:03:49.6]} 18. Qc3 {[%clk 0:03:05.4]} 18... Bc5 {[%clk 0:03:28.8]} 19. Bf6
{[%clk 0:02:48.6]} 19... Nxf6 {[%clk 0:03:09.4]} 20. Qxf6 {[%clk 0:02:44.4]}
20... Bd6 {[%clk 0:03:08.4]} 21. Rfd1 {[%clk 0:02:30.4]} 21... Be5 {[%clk
0:02:56.6]} 22. Nxe5 {[%clk 0:02:25]} 22... Rd8 {[%clk 0:02:28.8]} 23. Rac1
{[%clk 0:02:04.3]} 23... Rxd1+ {[%clk 0:02:21.9]} 24. Rxd1 {[%clk 0:02:01.7]}
24... Kf8 {[%clk 0:02:08.2]} 25. Rd8+ {[%clk 0:01:40.3]} 1-0

[Event "Live Chess"]
[Site "Chess.com"]
[Date "2023.05.20"]
[Round "-"]
[White "KGreenGator"]
[Black "therealab0ne"]
[Result "1-0"]
[WhiteElo "1787"]
[BlackElo "701"]
[TimeControl "300"]
[EndTime "12:58:50 PDT"]
[Termination "KGreenGator won by resignation"]

1. c4 {[%clk 0:04:58.7]} 1... e5 {[%clk 0:04:45.5]} 2. Nc3 {[%clk 0:04:57.6]}
2... Nc6 {[%clk 0:04:43.2]} 3. e3 {[%clk 0:04:56.7]} 3... Nf6 {[%clk 0:04:35.8]}
4. d4 {[%clk 0:04:55.4]} 4... exd4 {[%clk 0:04:33]} 5. exd4 {[%clk 0:04:54.5]}
5... d5 {[%clk 0:04:23.1]} 6. c5 {[%clk 0:04:52.7]} 6... g6 {[%clk 0:04:02.5]}
7. Nf3 {[%clk 0:04:50.5]} 7... Bg7 {[%clk 0:04:01.3]} 8. Bb5 {[%clk 0:04:47.2]}
8... O-O {[%clk 0:03:59]} 9. O-O {[%clk 0:04:45.4]} 9... Ne4 {[%clk 0:03:57.7]}
10. Re1 {[%clk 0:04:39.4]} 10... Qf6 {[%clk 0:03:19.3]} 11. Nxd5 {[%clk
0:04:35.1]} 11... Qd6 {[%clk 0:02:54.5]} 12. cxd6 {[%clk 0:04:33.2]} 1-0

[Event "Live Chess"]
[Site "Chess.com"]
[Date "2023.05.20"]
[Round "-"]
[White "ViktorTheCoolBoy"]
[Black "wadsy27"]
[Result "1-0"]
[WhiteElo "2517"]
[BlackElo "2549"]
[TimeControl "300"]
[EndTime "12:59:11 PDT"]
[Termination "ViktorTheCoolBoy won by resignation"]

1. d4 {[%clk 0:04:57.7]} 1... d5 {[%clk 0:04:58.6]} 2. c4 {[%clk 0:04:56.3]}
2... c6 {[%clk 0:04:58.1]} 3. Nf3 {[%clk 0:04:54.6]} 3... Nf6 {[%clk 0:04:57.4]}
4. Nc3 {[%clk 0:04:53.2]} 4... a6 {[%clk 0:04:56.7]} 5. e3 {[%clk 0:04:51.6]}
5... b5 {[%clk 0:04:53.6]} 6. cxd5 {[%clk 0:04:48.3]} 6... cxd5 {[%clk
0:04:52.5]} 7. Bd3 {[%clk 0:04:47.4]} 7... e6 {[%clk 0:04:50]} 8. O-O {[%clk
0:04:45.9]} 8... Be7 {[%clk 0:04:48.1]} 9. Bd2 {[%clk 0:04:45]} 9... O-O {[%clk
0:04:47.2]} 10. Qe2 {[%clk 0:04:44.4]} 10... Nc6 {[%clk 0:04:44.4]} 11. Rfc1
{[%clk 0:04:42.7]} 11... Bb7 {[%clk 0:04:43.6]} 12. a3 {[%clk 0:04:33.6]} 12...
Na5 {[%clk 0:04:38]} 13. Rab1 {[%clk 0:04:24.2]} 13... Rc8 {[%clk 0:04:28.9]}
14. Ne5 {[%clk 0:04:12.1]} 14... Nc4 {[%clk 0:04:27]} 15. Be1 {[%clk 0:04:09.3]}
15... Nd7 {[%clk 0:04:21.5]} 16. Nxd7 {[%clk 0:04:07]} 16... Qxd7 {[%clk
0:04:20.3]} 17. Na2 {[%clk 0:04:05.2]} 17... f5 {[%clk 0:04:13.6]} 18. Bb4
{[%clk 0:04:03.3]} 18... f4 {[%clk 0:03:52.3]} 19. Qh5 {[%clk 0:03:55]} 19... g6
{[%clk 0:03:44.9]} 20. Qh3 {[%clk 0:03:44.7]} 20... Bxb4 {[%clk 0:03:33.4]} 21.
axb4 {[%clk 0:03:42.4]} 21... Rf6 {[%clk 0:03:20]} 22. b3 {[%clk 0:03:30.1]}
22... Nd6 {[%clk 0:02:39.9]} 23. Rxc8+ {[%clk 0:03:27.4]} 23... Qxc8 {[%clk
0:02:34.1]} 24. Rc1 {[%clk 0:03:26.2]} 24... Qf8 {[%clk 0:02:32.9]} 25. Rc7
{[%clk 0:03:17.7]} 25... h5 {[%clk 0:02:25.2]} 26. exf4 {[%clk 0:02:54.2]} 26...
Qd8 {[%clk 0:02:01.7]} 27. Rc1 {[%clk 0:02:47.7]} 27... Ne4 {[%clk 0:01:12.7]}
28. Qe3 {[%clk 0:02:37.8]} 28... Qd6 {[%clk 0:01:03.7]} 29. g3 {[%clk
0:02:34.8]} 29... g5 {[%clk 0:00:59.5]} 30. Bxe4 {[%clk 0:02:15]} 30... gxf4
{[%clk 0:00:57.4]} 31. Qc3 {[%clk 0:02:13.7]} 31... dxe4 {[%clk 0:00:52.5]} 32.
Qc7 {[%clk 0:02:12]} 32... Qd5 {[%clk 0:00:46.1]} 33. Qe5 {[%clk 0:02:09.2]}
33... Rf7 {[%clk 0:00:40.7]} 34. Qxd5 {[%clk 0:02:01.8]} 34... Bxd5 {[%clk
0:00:39.3]} 35. Nc3 {[%clk 0:02:00.2]} 35... fxg3 {[%clk 0:00:36.5]} 36. hxg3
{[%clk 0:01:58.6]} 36... Rc7 {[%clk 0:00:28.8]} 37. Kf1 {[%clk 0:01:48.2]} 37...
Bxb3 {[%clk 0:00:27.2]} 38. Ke2 {[%clk 0:01:47.3]} 38... Bc4+ {[%clk 0:00:26.1]}
39. Kd2 {[%clk 0:01:42.6]} 39... Bd3 {[%clk 0:00:24.7]} 40. Nd1 {[%clk
0:01:37.9]} 40... Rxc1 {[%clk 0:00:22.7]} 41. Kxc1 {[%clk 0:01:37.8]} 41... Kf7
{[%clk 0:00:21.7]} 42. Kd2 {[%clk 0:01:37.2]} 42... Kf6 {[%clk 0:00:21.1]} 43.
Ke3 {[%clk 0:01:36.5]} 43... e5 {[%clk 0:00:20.1]} 44. Nc3 {[%clk 0:01:34.6]}
44... exd4+ {[%clk 0:00:19.2]} 45. Kxd4 {[%clk 0:01:33.3]} 45... Kf5 {[%clk
0:00:18.9]} 46. Ke3 {[%clk 0:01:32.2]} 46... Ke5 {[%clk 0:00:17.8]} 47. f3
{[%clk 0:01:25.9]} 47... Kf5 {[%clk 0:00:12.2]} 48. fxe4+ {[%clk 0:01:24.4]}
48... Kg4 {[%clk 0:00:11.7]} 49. Kxd3 {[%clk 0:01:23.2]} 49... Kxg3 {[%clk
0:00:10.1]} 50. e5 {[%clk 0:01:22.8]} 50... h4 {[%clk 0:00:09.6]} 51. e6 {[%clk
0:01:22.4]} 51... h3 {[%clk 0:00:09.5]} 52. e7 {[%clk 0:01:22]} 52... h2 {[%clk
0:00:09.1]} 53. e8=Q {[%clk 0:01:21.3]} 53... h1=Q {[%clk 0:00:08.5]} 54. Qe3+
{[%clk 0:01:20.3]} 54... Kg4 {[%clk 0:00:07.7]} 55. Qe4+ {[%clk 0:01:19.2]}
55... Qxe4+ {[%clk 0:00:07.4]} 56. Kxe4 {[%clk 0:01:19.1]} 56... Kg3 {[%clk
0:00:06.4]} 57. Nd5 {[%clk 0:01:16.5]} 57... Kf2 {[%clk 0:00:04.9]} 58. Kd4
{[%clk 0:01:15.7]} 58... Ke2 {[%clk 0:00:04.8]} 59. Kc5 {[%clk 0:01:15]} 59...
Kd2 {[%clk 0:00:04.7]} 60. Nc7 {[%clk 0:01:14.2]} 60... Kc3 {[%clk 0:00:04.6]}
61. Nxa6 {[%clk 0:01:13.5]} 61... Kb3 {[%clk 0:00:04.1]} 62. Nc7 {[%clk
0:01:12.8]} 1-0

[Event "Live Chess"]
[Site "Chess.com"]
[Date "2023.05.20"]
[Round "-"]
[White "Bot_Boy"]
[Black "YrrriKharkiv"]
[Result "0-1"]
[WhiteElo "330"]
[BlackElo "2038"]
[TimeControl "300"]
[EndTime "12:59:18 PDT"]
[Termination "YrrriKharkiv won on time"]

1. Nf3 {[%clk 0:04:59.1]} 1... Nf6 {[%clk 0:04:57.3]} 2. Nc3 {[%clk 0:04:56.2]}
2... e6 {[%clk 0:04:56.2]} 3. d4 {[%clk 0:04:52.9]} 3... d5 {[%clk 0:04:55.2]}
4. Bf4 {[%clk 0:04:47.3]} 4... c5 {[%clk 0:04:53.2]} 5. Ne5 {[%clk 0:04:39.6]}
5... Nc6 {[%clk 0:04:44.2]} 6. e3 {[%clk 0:04:29.3]} 6... cxd4 {[%clk
0:04:27.1]} 7. exd4 {[%clk 0:04:24.9]} 7... Qb6 {[%clk 0:03:58.4]} 8. Nxc6
{[%clk 0:04:08.3]} 8... bxc6 {[%clk 0:03:54.5]} 9. Rb1 {[%clk 0:03:43.9]} 9...
Bd7 {[%clk 0:03:37.6]} 10. h3 {[%clk 0:03:32.2]} 10... c5 {[%clk 0:03:33.4]} 11.
Be5 {[%clk 0:03:17.3]} 11... cxd4 {[%clk 0:03:26.4]} 12. Bxd4 {[%clk 0:03:07.7]}
12... Bc5 {[%clk 0:03:24.4]} 13. Bxc5 {[%clk 0:02:59.9]} 13... Qxc5 {[%clk
0:03:23.1]} 14. Be2 {[%clk 0:02:37]} 14... O-O {[%clk 0:03:15.1]} 15. Qd2 {[%clk
0:02:19]} 15... d4 {[%clk 0:02:59.9]} 16. Nd1 {[%clk 0:01:43]} 16... Rac8 {[%clk
0:02:39.6]} 17. Bd3 {[%clk 0:01:15.4]} 17... Bc6 {[%clk 0:02:24.6]} 18. O-O
{[%clk 0:01:05.7]} 18... Qd5 {[%clk 0:02:20.4]} 19. f3 {[%clk 0:00:44.9]} 19...
Nh5 {[%clk 0:02:07.3]} 20. Qf2 {[%clk 0:00:11.6]} 20... e5 {[%clk 0:01:53.5]}
21. g4 {[%clk 0:00:07.1]} 21... Nf4 {[%clk 0:01:50]} 22. Be4 {[%clk 0:00:04.3]}
22... Nxh3+ {[%clk 0:01:43.4]} 23. Kh2 {[%clk 0:00:02.4]} 23... Nxf2 {[%clk
0:01:22]} 24. Bxd5 {[%clk 0:00:01.5]} 24... Nxg4+ {[%clk 0:01:21]} 0-1